bitfinex/quotes_SOLUSD_20251031
["timestamp","ask_amount","ask_price","bid_price","bid_amount"]
[1761870224062,3.16490843,184.96,184.93,62.42]
[1761870224389,3.16490843,184.96,184.94,0.72]
[1761870224565,0.7,184.99,184.94,0.72]
[1761870224888,3.16490843,184.97,184.95,18.92403352]
[1761870225057,3.16490843,184.96,184.95,80.62403352]
[1761870225485,3.16490843,184.96,184.95,81.34403352]
[1761870225661,3.16490843,184.96,184.95,80.62403352]
[1761870227061,3.16490843,184.97,184.96,9.78882769]
[1761870227275,3.16490843,184.97,184.96,10.50882769]
[1761870227887,3.16490843,184.97,184.95,5.40686672]
[1761870228067,0.7,184.99,184.95,5.40686672]
[1761870228068,3.16490843,184.96,184.95,5.40686672]
[1761870228589,3.86490843,184.96,184.94,5.40712933]
[1761870228768,3.16490843,184.95,184.94,5.40712933]
[1761870228969,7.02981686,184.95,184.92,21.66809477]
[1761870229168,3.16490843,184.93,184.92,5.40749151]
[1761870230069,2.66490843,184.93,184.91,5.40803634]
[1761870230287,3.16490843,184.92,184.91,5.40803634]
[1761870231495,3.16490843,184.92,184.91,0.72]
[1761870231672,3.16490843,184.92,184.91,6.12803634]
[1761870234179,3.16490843,184.92,184.91,67.82803634]
[1761870236799,3.86490843,184.92,184.91,67.10803634]
[1761870237168,3.16490843,184.92,184.91,67.10803634]
[1761870238165,3.16490843,184.92,184.91,61.7]
[1761870238365,3.86490843,184.92,184.91,61.7]
[1761870238787,3.16490843,184.92,184.91,61.7]
[1761870240575,3.16490843,184.92,184.91,67.10803634]
[1761870242794,3.16490843,184.92,184.91,61.7]
[1761870244268,24.47690843,184.92,184.88,61.7]
[1761870244468,3.16490843,184.89,184.88,61.7]
[1761870244886,3.88490843,184.89,184.88,61.7]
[1761870245381,3.88490843,184.89,184.88,67.10891389]
[1761870245904,3.16490843,184.89,184.88,67.10891389]
[1761870246478,3.16490843,184.89,184.88,61.7]
[1761870246886,3.16490843,184.89,184.88,67.10891389]
[1761870247208,3.16490843,184.89,184.88,61.7]
[1761870247875,3.16490843,184.89,184.88,67.10891389]
[1761870249509,10.85998657,184.89,184.88,67.10891389]
[1761870251114,15.37603491,184.89,184.88,61.7]
[1761870252891,10.85998657,184.89,184.88,61.7]
[1761870253696,15.37559571,184.89,184.88,61.7]
[1761870254612,14.65559571,184.89,184.87,5.4091883]
[1761870254811,3.16490843,184.88,184.87,5.4091883]
[1761870254986,3.16490843,184.88,184.87,67.1091883]
[1761870255515,3.88490843,184.88,184.87,67.1091883]
[1761870255881,3.88490843,184.88,184.87,61.7]
[1761870256096,11.57764881,184.88,184.87,61.7]
[1761870256296,7.93347298,184.88,184.87,61.7]
[1761870256681,16.9860906,184.88,184.82,61.7]
[1761870256913,3.16490843,184.83,184.82,67.1106608]
[1761870258892,9.28529088,184.83,184.76,5.6123538]
[1761870259085,3.16490843,184.78,184.76,5.6123538]
[1761870259307,3.16490843,184.77,184.76,5.6123538]
[1761870259714,3.16490843,184.78,184.76,6.2823538]
[1761870259902,3.16490843,184.78,184.76,5.6123538]
[1761870260212,3.16490843,184.79,184.77,0.67]
[1761870261218,0.71,184.85,184.78,9.78882769]
[1761870261420,7.67831693,184.88,184.82,9.78882769]
[1761870261613,3.63726258,184.89,184.82,12.95373612]
[1761870261815,3.16490843,184.88,184.83,0.67]
[1761870262002,3.16490843,184.88,184.84,18.93529538]
[1761870262500,3.16490843,184.88,184.85,0.67]
[1761870262894,3.16490843,184.87,184.84,5.41008439]
[1761870263100,3.16490843,184.87,184.84,6.08008439]
[1761870263302,3.16490843,184.87,184.85,0.67]
[1761870263622,3.16490843,184.87,184.84,6.08008439]
[1761870264706,20.592,184.9,184.85,0.67]
[1761870264910,3.16490843,184.88,184.85,0.67]
[1761870266411,3.16490843,184.88,184.85,62.37]
[1761870266614,3.16490843,184.88,184.86,5.40949908]
[1761870266812,3.16490843,184.88,184.86,67.10949908]
[1761870268628,3.16490843,184.88,184.86,67.77949908]
[1761870268839,3.16490843,184.88,184.86,67.10949908]
[1761870269627,0.68,184.92,184.87,0.7]
[1761870269815,3.16490843,184.91,184.87,82.992]
[1761870270302,3.16490843,184.91,184.88,0.7]
[1761870270605,3.16490843,184.92,184.9,20.592]
[1761870270806,3.16490843,184.93,184.91,26.00003634]
[1761870271017,3.16490843,184.94,184.91,40.22012719]
[1761870271218,7.67732333,184.93,184.91,40.22012719]
[1761870271415,3.16490843,184.94,184.91,40.22012719]
[1761870272434,3.63722194,184.95,184.91,40.22012719]
[1761870272435,3.16490843,184.95,184.92,0.7]
[1761870273333,3.16490843,184.94,184.92,0.7]
[1761870274425,3.16490843,184.94,184.93,5.40745146]
[1761870275320,2.02463528,184.94,184.93,0.7]
[1761870276032,2.02463528,184.94,184.92,5.40774388]
[1761870276332,2.02463528,184.94,184.92,6.10774388]
[1761870277625,20.592,184.99,184.93,0.7]
[1761870277825,4.53753751,185.01,184.93,62.4]
[1761870277826,2.02463528,184.97,184.93,62.4]
[1761870278138,2.02463528,184.98,184.94,9.78882769]
[1761870278317,2.02463528,184.98,184.95,0.7]
[1761870278741,2.02463528,184.98,184.96,5.40657439]
[1761870279240,21.272,185.0,184.96,6.10657439]
[1761870279425,2.02463528,184.98,184.96,6.10657439]
[1761870279938,2.70463528,184.98,184.96,5.40657439]
[1761870280434,2.02463528,184.98,184.96,5.40657439]
[1761870280836,2.02463528,184.98,184.95,5.40686672]
[1761870281024,2.02463528,184.97,184.95,5.40686672]
[1761870281221,2.02463528,184.96,184.92,5.40748777]
[1761870281434,2.02463528,184.93,184.92,5.40748777]
[1761870281628,0.68,184.96,184.92,6.10748777]
[1761870281824,2.02463528,184.95,184.92,6.10748777]
[1761870282144,2.02463528,184.98,184.94,9.78882769]
[1761870282340,2.02463528,184.99,184.94,9.78882769]
[1761870282526,2.02463528,184.99,184.95,0.7]
[1761870282920,2.02463528,184.99,184.96,5.40657439]
[1761870283343,2.02463528,184.99,184.96,19.62301037]
[1761870283933,2.70463528,184.99,184.96,19.62301037]
[1761870284118,2.70463528,184.99,184.96,18.92301037]
[1761870284320,2.02463528,184.98,184.96,18.92301037]
[1761870284633,2.02463528,184.98,184.96,13.51643598]
[1761870284832,2.02463528,184.99,184.96,14.21643598]
[1761870285346,2.70463528,184.99,184.96,14.21643598]
[1761870285844,2.70463528,184.99,184.96,13.51643598]
[1761870286230,2.02463528,184.99,184.96,14.21643598]
[1761870286433,2.02463528,184.99,184.96,19.62301037]
[1761870286632,2.70463528,184.99,184.96,19.62301037]
[1761870286948,2.02463528,184.99,184.96,19.62301037]
[1761870287449,2.70463528,184.99,184.96,18.92301037]
[1761870287942,2.70463528,184.99,184.96,19.62301037]
[1761870288116,2.02463528,184.99,184.96,19.62301037]
[1761870288641,2.70463528,184.99,184.96,19.62301037]
[1761870289227,2.02463528,184.99,184.96,19.62301037]
[1761870290450,2.70463528,184.99,184.96,19.62301037]
[1761870290920,2.02463528,184.99,184.96,19.62301037]
[1761870292545,2.02463528,184.98,184.96,19.62301037]
[1761870292743,2.02463528,184.98,184.96,81.32301037]
[1761870292933,2.02463528,184.99,184.96,81.32301037]
[1761870293842,2.70463528,184.99,184.96,81.32301037]
[1761870294830,2.02463528,184.99,184.96,81.32301037]
[1761870295029,2.02463528,185.0,184.97,0.7]
[1761870295232,2.02463528,185.01,184.97,0.7]
[1761870295643,2.70463528,185.01,184.97,0.7]
[1761870297435,2.70463528,185.01,184.98,5.40598983]
[1761870297638,2.02463528,184.99,184.94,61.7]
[1761870297861,2.02463528,184.95,184.94,61.7]
[1761870298033,2.02463528,184.95,184.89,82.992]
[1761870298237,2.02463528,184.95,184.9,15.89714827]
[1761870298238,2.02463528,184.92,184.9,15.89714827]
[1761870298576,2.02463528,184.92,184.9,21.30140409]
[1761870298783,2.02463528,184.93,184.91,0.65]
[1761870299443,2.02463528,184.93,184.92,5.40774388]
[1761870299972,2.02463528,184.93,184.92,6.05774388]
[1761870300133,2.02463528,184.94,184.92,6.05774388]
[1761870300457,2.02463528,184.93,184.92,5.40774388]
[1761870300849,2.74463528,184.93,184.92,5.40774388]
[1761870301052,2.74463528,184.93,184.86,61.7]
[1761870301262,2.02463528,184.88,184.86,18.9332117]
[1761870301637,2.02463528,184.88,184.86,19.5832117]
[1761870301833,2.02463528,184.89,184.87,0.65]
[1761870302038,2.02463528,184.9,184.87,0.65]
[1761870302238,2.02463528,184.89,184.86,18.9332117]
[1761870302455,2.02463528,184.89,184.86,19.5832117]
[1761870303050,2.02463528,184.89,184.86,6.05949908]
[1761870303563,2.02463528,184.9,184.86,6.05949908]
[1761870303963,2.02463528,184.89,184.86,6.05949908]
[1761870304166,2.02463528,184.87,184.82,14.17595267]
[1761870304356,2.02463528,184.85,184.83,15.19915755]
[1761870305066,2.74463528,184.85,184.83,15.19915755]
[1761870305741,2.02463528,184.84,184.83,15.19915755]
[1761870306060,2.74463528,184.84,184.82,5.41061653]
[1761870306264,2.02463528,184.83,184.82,5.41061653]
[1761870306662,2.02463528,184.83,184.81,9.78882769]
[1761870306875,2.74463528,184.82,184.77,5.412134]
[1761870307068,2.02463528,184.83,184.78,10.43882769]
[1761870307268,0.72,184.85,184.78,10.43882769]
[1761870307465,2.02463528,184.84,184.81,5.41096261]
[1761870307863,2.02463528,184.84,184.82,0.65]
[1761870308875,2.02463528,184.84,184.81,5.41096261]
[1761870309080,2.02463528,184.83,184.81,5.41096261]
[1761870309263,20.592,184.81,184.8,13.5276504]
[1761870309577,20.592,184.77,184.76,0.2]
[1761870309744,22.61663528,184.77,184.76,0.2]
[1761870309946,23.33663528,184.77,184.76,0.2]
[1761870310149,31.4351764,184.77,184.76,0.2]
[1761870311949,36.8473104,184.77,184.76,0.2]
[1761870313375,31.4351764,184.77,184.76,0.2]
[1761870313567,2.74463528,184.77,184.76,0.2]
[1761870313976,23.33663528,184.77,184.76,0.2]
[1761870314177,2.74463528,184.77,184.76,0.2]
[1761870315091,8.15676928,184.77,184.76,0.2]
[1761870316182,0.72,184.77,184.76,0.2]
[1761870316372,8.15676928,184.77,184.76,0.2]
[1761870316957,2.74463528,184.77,184.76,0.2]
[1761870317675,28.74876928,184.77,184.76,0.2]
[1761870319166,36.8473104,184.77,184.76,0.2]
[1761870320070,28.74876928,184.77,184.76,0.2]
[1761870320477,36.8473104,184.77,184.76,0.2]
[1761870322782,26.724134,184.77,184.76,0.2]
[1761870322988,21.312,184.77,184.76,0.2]
[1761870323164,23.33663528,184.77,184.76,0.2]
[1761870329772,22.61663528,184.77,184.76,0.2]
[1761870329971,23.30663528,184.77,184.76,0.2]
[1761870332382,28.71876928,184.77,184.76,0.2]
[1761870332891,36.8173104,184.77,184.76,0.2]
[1761870333076,16.2253104,184.77,184.76,0.2]
[1761870334006,6.102134,184.77,184.76,0.2]
[1761870334186,16.2253104,184.77,184.76,0.2]
[1761870334876,19.82394105,184.77,184.76,0.2]
[1761870335372,16.04353977,184.77,184.76,0.2]
[1761870338083,20.05090895,184.77,184.76,0.2]
[1761870338392,16.04353977,184.77,184.76,0.2]
[1761870338897,20.05120395,184.77,184.76,0.2]
[1761870339195,20.05320514,184.77,184.76,0.2]
[1761870341184,40.64520514,184.77,184.76,0.2]
[1761870342005,36.78381758,184.77,184.76,0.2]
[1761870342601,39.95520514,184.77,184.76,0.2]
[1761870342801,40.64520514,184.77,184.76,0.2]
[1761870343375,45.18274265,184.77,184.76,0.2]
[1761870345090,45.17890257,184.77,184.74,0.2]
[1761870345292,3.17138756,184.75,184.74,0.2]
[1761870345603,10.77968358,184.75,184.74,0.2]
[1761870347082,16.19240347,184.75,184.74,0.2]
[1761870348504,10.77968358,184.75,184.74,0.2]
[1761870348696,16.19240347,184.75,184.74,0.2]
[1761870349091,20.7261009,184.75,184.74,0.2]
[1761870350288,24.24192935,184.75,184.74,0.2]
[1761870351211,24.22609667,184.75,184.74,0.2]
[1761870351402,19.69239924,184.75,184.74,0.2]
[1761870353109,24.22609667,184.75,184.74,0.2]
[1761870353315,19.69239924,184.75,184.74,0.2]
[1761870354219,24.22609667,184.75,184.74,0.2]
[1761870355517,24.2621234,184.75,184.74,0.2]
[1761870356501,19.69239924,184.75,184.74,0.2]
[1761870356810,24.2621234,184.75,184.74,0.2]
[1761870357015,21.09073584,184.75,184.74,0.2]
[1761870357319,19.69239924,184.75,184.74,0.2]
[1761870359712,24.2621234,184.75,184.74,0.2]
[1761870360300,24.2621234,184.75,184.74,0.89]
[1761870360499,24.2621234,184.75,184.74,0.2]
[1761870361425,21.09073584,184.75,184.74,0.2]
[1761870361724,24.2621234,184.75,184.74,0.2]
[1761870362400,24.2621234,184.75,184.72,0.2]
[1761870362401,38.48341169,184.75,184.72,0.2]
[1761870362620,3.17138756,184.73,184.72,0.2]
[1761870362820,18.84889208,184.73,184.72,0.2]
[1761870363001,19.53889208,184.73,184.72,0.2]
[1761870363202,18.84889208,184.73,184.72,0.2]
[1761870363400,14.96967935,184.73,184.72,0.2]
[1761870363815,19.53889208,184.73,184.72,0.2]
[1761870364000,24.95219798,184.73,184.72,0.2]
[1761870364734,20.38298525,184.73,184.72,0.2]
[1761870365036,20.38298525,184.73,184.71,0.1]
[1761870365203,35.56167935,184.72,184.71,0.1]
[1761870366120,40.97527831,184.72,184.71,0.1]
[1761870367505,20.38327831,184.72,184.71,0.1]
[1761870370142,13.02189498,184.72,184.71,0.79]
[1761870370335,16.19328254,184.72,184.71,0.1]
[1761870370640,7.60829602,184.72,184.71,0.79]
[1761870370808,7.18105293,184.72,184.71,0.79]
[1761870371328,3.17138756,184.72,184.71,0.79]
[1761870371708,3.17138756,184.73,184.71,6.20373453]
[1761870371936,3.17138756,184.73,184.71,67.90373453]
[1761870372245,3.17138756,184.73,184.72,0.69]
[1761870372830,3.17138756,184.74,184.72,0.69]
[1761870373849,3.17138756,184.73,184.72,0.69]
[1761870374139,3.17138756,184.73,184.72,6.10359896]
[1761870374457,20.592,184.76,184.72,67.80359896]
[1761870374617,3.17138756,184.75,184.73,10.47882769]
[1761870375128,3.17138756,184.75,184.74,0.69]
[1761870376127,7.22341668,184.75,184.74,0.69]
[1761870378120,7.22359171,184.75,184.74,0.69]
[1761870378743,7.22359171,184.75,184.73,61.7]
[1761870379049,15.09427422,184.74,184.73,61.7]
[1761870379730,20.592,184.72,184.71,0.1]
[1761870379952,32.18264043,184.72,184.71,0.1]
[1761870380258,35.68669799,184.72,184.71,0.1]
[1761870380420,40.38029695,184.72,184.71,0.1]
[1761870380936,36.87623939,184.72,184.71,0.1]
[1761870381142,36.87633373,184.72,184.71,0.1]
[1761870382541,31.46273477,184.72,184.71,0.1]
[1761870382720,31.46273477,184.72,184.71,0.76]
[1761870382721,16.28433373,184.72,184.71,0.76]
[1761870383547,16.28433373,184.72,184.71,0.1]
[1761870385477,10.87073477,184.72,184.71,0.1]
[1761870385632,7.22368605,184.72,184.71,0.1]
[1761870386939,3.17138756,184.72,184.71,0.76]
[1761870387258,7.22323441,184.72,184.71,0.76]
[1761870388133,12.63683337,184.72,184.71,0.76]
[1761870388549,16.2836989,184.72,184.71,0.76]
[1761870389141,16.2836989,184.72,184.71,0.1]
[1761870390248,16.9836989,184.72,184.71,0.1]
[1761870390833,13.81231134,184.72,184.71,0.1]
[1761870391054,20.49566251,184.72,184.71,0.1]
[1761870391349,16.9836989,184.72,184.71,0.1]
[1761870391556,20.49563412,184.72,184.71,0.1]
[1761870394780,3.17138756,184.7,184.69,61.7]
[1761870394963,3.17138756,184.7,184.68,0.2]
[1761870394964,10.87009994,184.7,184.68,0.2]
[1761870395167,14.7414875,184.69,184.68,0.2]
[1761870396370,20.15596581,184.69,184.68,0.2]
[1761870397356,23.96974819,184.69,184.68,0.2]
[1761870399262,44.56174819,184.69,184.68,0.2]
[1761870401182,44.56174819,184.69,184.67,0.20000001]
[1761870401388,18.55526988,184.68,184.67,0.20000001]
[1761870402294,23.97004137,184.68,184.67,0.20000001]
[1761870404468,23.96607078,184.68,184.67,0.20000001]
[1761870405690,37.50299952,184.68,184.65,1e-08]
[1761870405895,2.0313115,184.66,184.65,1e-08]
[1761870406064,9.72605329,184.66,184.65,1e-08]
[1761870407665,15.14141124,184.66,184.65,1e-08]
[1761870408392,11.49454571,184.66,184.65,0.66000001]
[1761870409086,11.49454571,184.66,184.65,1e-08]
[1761870410093,20.592,184.69,184.65,0.66000001]
[1761870410300,2.0313115,184.66,184.65,1e-08]
[1761870411274,6.07660843,184.66,184.65,1e-08]
[1761870411479,6.0762206,184.66,184.65,1e-08]
[1761870411884,12.19157855,184.66,184.65,1e-08]
[1761870412291,15.83211061,184.66,184.65,1e-08]
[1761870412491,12.19157855,184.66,184.65,1e-08]
[1761870412669,15.83211061,184.66,184.65,1e-08]
[1761870412871,12.19157855,184.66,184.65,1e-08]
[1761870413079,15.83211061,184.66,184.65,1e-08]
[1761870413307,12.19157855,184.66,184.65,1e-08]
[1761870413600,7.44666945,184.66,184.65,1e-08]
[1761870414106,11.49064662,184.66,184.65,1e-08]
[1761870415296,7.44666945,184.66,184.65,1e-08]
[1761870416295,7.44666945,184.66,184.63,72.55064663]
[1761870416483,2.0313115,184.64,184.63,72.55064663]
[1761870417494,2.7313115,184.64,184.63,72.55064663]
[1761870417674,8.14725604,184.64,184.63,72.55064663]
[1761870418679,7.44725604,184.64,184.63,61.7]
[1761870418893,21.69711739,184.64,184.6,0.2]
[1761870419094,2.0313115,184.61,184.6,0.2]
[1761870420495,7.44813615,184.61,184.6,0.2]
[1761870420889,26.00794646,184.64,184.6,0.82]
[1761870421079,2.0313115,184.61,184.6,0.82]
[1761870421484,2.0313115,184.61,184.6,0.2]
[1761870422604,7.44813615,184.61,184.6,0.2]
[1761870422983,7.44813615,184.61,184.6,0.82]
[1761870423593,2.0313115,184.61,184.6,0.82]
[1761870424699,2.0313115,184.61,184.6,62.52]
[1761870424901,7.44813615,184.61,184.6,62.52]
[1761870425611,7.44813615,184.61,184.6,61.9]
[1761870425990,8.15813615,184.61,184.6,61.9]
[1761870426687,12.20633588,184.61,184.6,61.9]
[1761870427286,4.04819973,184.61,184.6,61.9]
[1761870427608,11.49633588,184.61,184.6,61.9]
[1761870428186,12.20633588,184.61,184.6,61.9]
[1761870428512,23.97433469,184.61,184.6,0.2]
[1761870429604,23.97433469,184.61,184.58,61.9]
[1761870429605,41.04727474,184.61,184.58,61.9]
[1761870429825,41.04727474,184.61,184.58,0.2]
[1761870429826,10.1565575,184.59,184.58,0.2]
[1761870430003,17.84751004,184.59,184.58,0.2]
[1761870430311,18.55751004,184.59,184.58,0.2]
[1761870430483,14.91475723,184.59,184.58,0.2]
[1761870430684,18.55751004,184.59,184.58,0.2]
[1761870430884,20.33216879,184.59,184.58,0.2]
[1761870431109,23.9749216,184.59,184.58,0.2]
[1761870431608,20.33216879,184.59,184.58,0.2]
[1761870431808,23.9749216,184.59,184.58,0.2]
[1761870432178,20.33216879,184.59,184.58,0.2]
[1761870432383,23.9749216,184.59,184.58,0.2]
[1761870432609,20.33216879,184.59,184.58,0.2]
[1761870432786,23.9749216,184.59,184.58,0.2]
[1761870433317,20.33216879,184.59,184.58,0.2]
[1761870433517,9.78882769,184.56,184.52,0.1]
[1761870433698,34.44345069,184.57,184.41,5.42265737]
[1761870433699,20.592,184.52,184.42,0.68]
[1761870433894,2.0313115,184.47,184.43,0.68]
[1761870434094,6.07982519,184.47,184.43,0.68]
[1761870434297,2.0313115,184.47,184.43,0.68]
[1761870434511,6.07510708,184.47,184.43,0.68]
[1761870434693,11.49604273,184.47,184.43,0.68]
[1761870435423,7.45224715,184.47,184.43,0.68]
[1761870435710,8.17224715,184.47,184.43,0.68]
[1761870435916,12.21154243,184.47,184.43,0.68]
[1761870436290,7.45224715,184.47,184.43,0.68]
[1761870438023,8.17224715,184.47,184.43,0.68]
[1761870438215,12.20411031,184.47,184.43,0.68]
[1761870438512,8.17224715,184.47,184.43,62.38]
[1761870438902,28.04424715,184.47,184.43,62.38]
[1761870439686,28.04424715,184.47,184.44,0.72]
[1761870442822,28.04424715,184.47,184.43,62.42]
[1761870443815,28.04424715,184.47,184.43,61.7]
[1761870444000,28.04424715,184.47,184.44,0.72]
[1761870448094,28.04424715,184.47,184.46,61.8]
[1761870449518,7.45224715,184.47,184.46,61.8]
[1761870455338,5.4206418,184.48,184.46,61.8]
[1761870455505,22.6233115,184.47,184.46,61.8]
[1761870456520,28.04424715,184.47,184.46,61.8]
[1761870457341,29.19398862,184.47,184.46,61.8]
[1761870460120,33.21098628,184.47,184.46,61.8]
[1761870460631,29.19398862,184.47,184.46,61.8]
[1761870460834,33.21217278,184.47,184.46,61.8]
[1761870461237,29.19398862,184.47,184.46,61.8]
[1761870462539,33.21395264,184.47,184.46,61.8]
[1761870465255,33.90395264,184.47,184.46,61.8]
[1761870465622,33.90395264,184.47,184.46,0.1]
[1761870467025,33.21395264,184.47,184.46,0.1]
[1761870467921,14.23861862,184.53,184.46,0.77]
[1761870468126,3.18105297,184.47,184.46,61.8]
[1761870468446,3.18105297,184.47,184.46,62.47]
[1761870469035,7.21194436,184.47,184.46,62.47]
[1761870469660,7.21194436,184.47,184.46,61.8]
[1761870469953,12.6357813,184.47,184.46,61.8]
[1761870470127,13.3257813,184.47,184.46,61.8]
[1761870470630,12.6357813,184.47,184.46,61.8]
[1761870471247,16.26585639,184.47,184.46,61.8]
[1761870471453,16.26585639,184.47,184.46,0.1]
[1761870474560,19.75765779,184.47,184.46,0.1]
[1761870474876,16.26585639,184.47,184.46,0.1]
[1761870475054,19.75765779,184.47,184.46,0.1]
[1761870476831,16.1275827,184.47,184.46,0.1]
[1761870477028,19.77787172,184.47,184.46,0.1]
[1761870477829,20.46787172,184.47,184.46,0.1]
[1761870478256,25.030733,184.47,184.46,0.1]
[1761870478632,21.38044398,184.47,184.46,0.1]
[1761870479256,16.1275827,184.47,184.46,0.1]
[1761870481454,20.69044398,184.47,184.46,0.1]
[1761870481659,41.99244398,184.47,184.46,0.1]
[1761870482236,7.52559408,184.47,184.46,62.51]
[1761870482449,10.70664705,184.47,184.46,72.29882769]
[1761870483247,10.70664705,184.47,184.46,61.8]
[1761870483761,16.1275827,184.47,184.46,61.8]
[1761870484346,16.8375827,184.47,184.46,61.8]
[1761870484855,16.1275827,184.47,184.46,61.8]
[1761870486158,16.1275827,184.47,184.46,0.1]
[1761870489754,16.8375827,184.47,184.46,0.1]
[1761870495272,13.65652973,184.47,184.46,0.1]
[1761870495469,16.8375827,184.47,184.46,0.1]
[1761870498473,34.96635942,184.47,184.4,61.7]
[1761870498657,3.18105297,184.41,184.4,61.7]
[1761870498857,7.21484565,184.41,184.4,61.7]
[1761870500080,12.63754506,184.41,184.4,61.7]
[1761870505676,7.21484565,184.41,184.4,62.39]
[1761870505880,4.03379268,184.41,184.4,62.39]
[1761870506074,7.21484565,184.41,184.4,67.81299349]
[1761870506574,4.03379268,184.41,184.4,67.81299349]
[1761870506989,23.77305297,184.42,184.4,67.81299349]
[1761870507282,3.18105297,184.41,184.4,67.12299349]
[1761870507656,3.18105297,184.41,184.4,67.81299349]
[1761870509373,5.42093565,184.47,184.4,67.81299349]
[1761870509678,3.18105297,184.43,184.41,0.68]
[1761870509856,3.18105297,184.43,184.41,62.38]
[1761870510053,3.18105297,184.43,184.41,67.8025077]
[1761870510257,3.18105297,184.43,184.42,0.68]
[1761870510475,7.24366967,184.43,184.42,0.68]
[1761870511373,3.18105297,184.43,184.42,0.68]
[1761870512476,7.24366167,184.43,184.42,0.68]
[1761870512664,4.0626087,184.43,184.42,6.10240537]
[1761870512864,7.24366167,184.43,184.42,0.68]
[1761870515593,7.24366167,184.43,184.42,62.38]
[1761870517989,6.14273315,184.43,184.42,62.38]
[1761870519282,4.99766749,184.43,184.42,62.38]
[1761870521679,2.96168018,184.43,184.42,77.59123306]
[1761870521873,2.03598731,184.45,184.42,77.59123306]
[1761870522070,2.03598731,184.45,184.43,6.10199168]
[1761870522490,20.592,184.47,184.44,0.68]
[1761870522674,2.03598731,184.45,184.44,0.68]
[1761870523391,2.03598731,184.45,184.42,77.59120068]
[1761870523598,2.03598731,184.44,184.43,0.68]
[1761870524698,2.03598731,184.44,184.42,76.91117085]
[1761870524876,2.03598731,184.44,184.42,77.59117085]
[1761870525898,0.7,184.46,184.43,0.68]
[1761870526102,2.03598731,184.44,184.43,6.10201216]
[1761870527207,2.03598731,184.44,184.43,67.80201216]
[1761870530007,6.09876285,184.44,184.43,67.80201216]
[1761870536011,6.09800532,184.44,184.43,67.80201216]
[1761870537291,6.09800532,184.44,184.43,67.12201216]
[1761870538009,6.09800532,184.44,184.43,67.80201216]
[1761870539200,6.09800532,184.44,184.43,67.12201216]
[1761870539402,6.09800532,184.44,184.43,61.7]
[1761870540304,4.06201801,184.44,184.43,76.91093906]
[1761870540518,2.03598731,184.48,184.44,71.48882769]
[1761870540727,4.06115227,184.47,184.46,9.78882769]
[1761870540894,2.03598731,184.55,184.47,9.78882769]
[1761870541093,7.54781158,184.54,184.5,9.78882769]
[1761870541289,4.06022257,184.53,184.52,9.78882769]
[1761870542606,4.06022257,184.53,184.52,10.50882769]
[1761870543410,2.03598731,184.55,184.53,5.41917303]
[1761870543610,4.05220257,184.54,184.53,15.20800072]
[1761870544394,2.03598731,184.55,184.53,15.20800072]
[1761870544787,20.592,184.59,184.55,9.78882769]
[1761870544989,4.05001615,184.58,184.57,9.78882769]
[1761870545302,0.2,184.63,184.57,9.78882769]
[1761870545303,2.03598731,184.61,184.57,71.48882769]
[1761870545504,2.03598731,184.61,184.59,9.78882769]
[1761870545720,0.2,184.63,184.59,9.78882769]
[1761870545896,2.03598731,184.62,184.6,0.72]
[1761870546228,0.2,184.63,184.6,0.72]
[1761870546535,2.03598731,184.61,184.6,10.50882769]
[1761870546833,2.03598731,184.62,184.61,5.41682465]
[1761870547005,2.03598731,184.62,184.6,15.92592354]
[1761870547539,2.03598731,184.62,184.6,9.78882769]
[1761870547716,0.2,184.63,184.59,67.11740465]
[1761870547717,6.74385081,184.61,184.59,61.7]
[1761870547917,6.07385081,184.6,184.59,61.7]
[1761870548123,6.74385081,184.6,184.59,61.7]
[1761870548748,6.07385081,184.6,184.59,67.11741156]
[1761870549045,6.07385081,184.6,184.59,61.7]
[1761870549344,0.67,184.62,184.59,61.7]
[1761870549345,2.03598731,184.61,184.59,77.62623925]
[1761870549512,0.87,184.63,184.59,77.62623925]
[1761870549711,0.2,184.63,184.6,10.50882769]
[1761870549978,2.03598731,184.62,184.6,9.78882769]
[1761870550240,2.03598731,184.61,184.6,9.78882769]